fUSD/lending_fUSD_20260608
["ID","MTS","AMOUNT","RATE_DAILY","PERIOD"]
[424442991,1780901431000,-500.0,0.00013698,2]
[424442984,1780901431000,-256.38109004,0.00013488,2]
[424442987,1780901431000,-803.09,0.00013503,2]
[424442989,1780901431000,-500.0,0.00013698,2]
[424442990,1780901431000,-500.0,0.00013698,2]
[424442988,1780901431000,-500.0,0.00013698,2]
[424442986,1780901431000,-204.90053781,0.00013488,2]
[424442985,1780901431000,-176.91222489,0.00013488,2]
[424442983,1780901431000,-67.35561623,0.00013459,2]
[424442980,1780901431000,-38848.71868264,0.00011753,2]
[424442982,1780901431000,-482.63940296,0.00013452,7]
[424442981,1780901431000,-1124.7865862,0.00011873,2]
[424442979,1780901431000,-72931.43813361,0.00011753,2]
[424442978,1780901431000,-169998.82394327,0.00011753,2]
[424442996,1780901431000,-549.54166988,0.00013698,2]
[424443001,1780901431000,-500.0,0.00013698,2]
[424442992,1780901431000,-500.0,0.00013698,2]
[424443002,1780901431000,-500.0,0.00013698,2]
[424442999,1780901431000,-500.0,0.00013698,2]
[424443018,1780901431000,-433.0,0.00014104,2]
[424443017,1780901431000,-181.64888322,0.00014071,2]
[424443016,1780901431000,-166.66,0.00013973,2]
[424443011,1780901431000,-166.66,0.00013699,2]
[424443015,1780901431000,-168.27,0.00013843,2]
[424443012,1780901431000,-214.14567846,0.00013795,2]
[424443010,1780901431000,-500.0,0.00013698,2]
[424443014,1780901431000,-166.66,0.00013836,2]
[424443009,1780901431000,-238.00578641,0.00013698,2]
[424443013,1780901431000,-242.01832992,0.00013795,2]
[424443005,1780901431000,-500.0,0.00013698,2]
[424443006,1780901431000,-500.0,0.00013698,2]
[424443004,1780901431000,-500.0,0.00013698,2]
[424443008,1780901431000,-500.0,0.00013698,2]
[424443003,1780901431000,-500.0,0.00013698,2]
[424442997,1780901431000,-500.0,0.00013698,2]
[424443000,1780901431000,-268.18273962,0.00013698,2]
[424442998,1780901431000,-527.31447559,0.00013698,2]
[424443007,1780901431000,-500.0,0.00013698,2]
[424443035,1780901432000,-3000.0,0.000145,5]
[424443037,1780901432000,-350.0,0.00014544,2]
[424443040,1780901432000,-500.0,0.00014688,2]
[424443041,1780901432000,-500.0,0.00014688,2]
[424443039,1780901432000,-500.0,0.00014688,2]
[424443038,1780901432000,-3800.0,0.000146,5]
[424443036,1780901432000,-350.0,0.00014541,2]
[424443047,1780901432000,-322.47344829,0.00014688,2]
[424443043,1780901432000,-500.0,0.00014688,2]
[424443033,1780901432000,-166.66,0.00014384,2]
[424443042,1780901432000,-500.0,0.00014688,2]
[424443031,1780901432000,-1500.0,0.000143,5]
[424443021,1780901432000,-500.0,0.0001417,2]
[424443032,1780901432000,-1000.0,0.00014308,2]
[424443030,1780901432000,-214.14567846,0.00014277,2]
[424443029,1780901432000,-500.0,0.00014247,2]
[424443024,1780901432000,-165.30048582,0.0001417,2]
[424443026,1780901432000,-700.0,0.000142,5]
[424443028,1780901432000,-166.66,0.00014247,2]
[424443025,1780901432000,-200.0,0.00014171,2]
[424443027,1780901432000,-500.0,0.00014245,2]
[424443022,1780901432000,-436.47480961,0.0001417,2]
[424443020,1780901432000,-500.0,0.0001417,2]
[424443019,1780901432000,-166.66,0.0001411,2]
[424443045,1780901432000,-500.0,0.00014688,2]
[424443034,1780901432000,-2200.0,0.000144,5]
[424443046,1780901432000,-500.0,0.00014688,2]
[424443058,1780901432000,-397.57156841,0.00014688,2]
[424443048,1780901432000,-150.0,0.00014688,2]
[424443075,1780901432000,-13.73225886,0.00014898,2]
[424443071,1780901432000,-895.0454428,0.00014898,2]
[424443073,1780901432000,-11509.80466673,0.00014898,2]
[424443072,1780901432000,-15731.86735041,0.00014898,2]
[424443069,1780901432000,-200.0,0.00014879,2]
[424443068,1780901432000,-500.0,0.00014877,2]
[424443070,1780901432000,-200.0,0.0001488,2]
[424443062,1780901432000,-700.0,0.000148,5]
[424443064,1780901432000,-152.49255,0.0001485,2]
[424443063,1780901432000,-181.17043474,0.00014826,2]
[424443067,1780901432000,-152.49255,0.0001485,2]
[424443066,1780901432000,-152.49255,0.0001485,2]
[424443044,1780901432000,-500.0,0.00014688,2]
[424443065,1780901432000,-152.49255,0.0001485,2]
[424443057,1780901432000,-500.0,0.00014688,2]
[424443059,1780901432000,-700.0,0.000147,5]
[424443060,1780901432000,-159.89,0.000148,2]
[424443074,1780901432000,-4222.06268361,0.00014898,2]
[424443056,1780901432000,-500.0,0.00014688,2]
[424443052,1780901432000,-500.0,0.00014688,2]
[424443055,1780901432000,-500.0,0.00014688,2]
[424443054,1780901432000,-500.0,0.00014688,2]
[424443051,1780901432000,-500.0,0.00014688,2]
[424443050,1780901432000,-500.0,0.00014688,2]
[424443053,1780901432000,-500.0,0.00014688,2]
[424443049,1780901432000,-199.68095837,0.00014688,2]
[424443061,1780901432000,-159.0,0.000148,2]
[424443076,1780901437000,-15718.13509148,0.00014898,2]
[424443078,1780901437000,-15731.86735034,0.00014899,2]
[424443077,1780901437000,-15731.86735034,0.00014899,2]
[424443160,1780901438000,-245.10267363,0.00014997,2]
[424443111,1780901438000,-500.0,0.00014996,2]
[424443110,1780901438000,-500.0,0.00014996,2]
[424443115,1780901438000,-587.18,0.00014996,2]
[424443109,1780901438000,-500.0,0.00014996,2]
[424443117,1780901438000,-500.0,0.00014996,2]
[424443120,1780901438000,-311.99555842,0.00014996,2]
[424443122,1780901438000,-500.0,0.00014996,2]
[424443124,1780901438000,-500.0,0.00014996,2]
[424443138,1780901438000,-151.0,0.00014997,2]
[424443126,1780901438000,-500.0,0.00014996,2]
[424443140,1780901438000,-500.0,0.00014997,2]
[424443142,1780901438000,-259.09704738,0.00014997,2]
[424443129,1780901438000,-500.0,0.00014996,2]
[424443131,1780901438000,-500.0,0.00014996,2]
[424443136,1780901438000,-500.0,0.00014996,2]
[424443133,1780901438000,-500.0,0.00014996,2]
[424443145,1780901438000,-263.25326961,0.00014997,2]
[424443149,1780901438000,-500.0,0.00014997,2]
[424443147,1780901438000,-273.78823829,0.00014997,2]
[424443151,1780901438000,-500.0,0.00014997,2]
[424443153,1780901438000,-500.0,0.00014997,2]
[424443157,1780901438000,-198.50835924,0.00014997,2]
[424443155,1780901438000,-500.0,0.00014997,2]
[424443113,1780901438000,-587.18,0.00014996,2]
[424443108,1780901438000,-500.0,0.00014996,2]
[424443091,1780901438000,-25000.0,0.000149,3]
[424443103,1780901438000,-512.99574311,0.00014996,2]
[424443079,1780901438000,-895.04544278,0.00014899,2]
[424443080,1780901438000,-500.0,0.00014899,2]
[424443081,1780901438000,-500.0,0.00014899,2]
[424443083,1780901438000,-15731.86735034,0.00014899,2]
[424443082,1780901438000,-15731.86735034,0.00014899,2]
[424443084,1780901438000,-15731.86735034,0.000149,2]
[424443085,1780901438000,-15731.86735034,0.000149,2]
[424443086,1780901438000,-220.75690488,0.000149,2]
[424443088,1780901438000,-848.79375586,0.000149,2]
[424443090,1780901438000,-190450.42087224,0.000149,3]
[424443087,1780901438000,-10000.0,0.000149,2]
[424443089,1780901438000,-6175.18944944,0.000149,2]
[424443164,1780901438000,-500.0,0.00014997,2]
[424443092,1780901438000,-700.0,0.000149,5]
[424443094,1780901438000,-645.35800275,0.000149,2]
[424443093,1780901438000,-895.04544278,0.000149,2]
[424443095,1780901438000,-15731.86735034,0.000149,2]
[424443097,1780901438000,-1535.0,0.00014959,2]
[424443098,1780901438000,-350.0,0.00014971,2]
[424443096,1780901438000,-505.70637912,0.000149,2]
[424443100,1780901438000,-500.0,0.00014996,2]
[424443099,1780901438000,-151.0,0.00014986,2]
[424443101,1780901438000,-500.0,0.00014996,2]
[424443102,1780901438000,-500.0,0.00014996,2]
[424443104,1780901438000,-500.0,0.00014996,2]
[424443106,1780901438000,-152.46551428,0.00014996,2]
[424443166,1780901438000,-500.0,0.00014997,2]
[424443176,1780901438000,-3159.0466895,0.00014998,2]
[424443168,1780901438000,-500.0,0.00014997,2]
[424443209,1780901438000,-500.0,0.00014999,2]
[424443211,1780901438000,-500.0,0.00014999,2]
[424443212,1780901438000,-500.0,0.00014999,2]
[424443207,1780901438000,-500.0,0.00014999,2]
[424443210,1780901438000,-500.0,0.00014999,2]
[424443215,1780901438000,-500.0,0.00014999,2]
[424443213,1780901438000,-500.0,0.00014999,2]
[424443214,1780901438000,-578.33888544,0.00014999,2]
[424443162,1780901438000,-150.0,0.00014997,2]
[424443216,1780901438000,-500.0,0.00014999,2]
[424443217,1780901438000,-500.0,0.00014999,2]
[424443220,1780901438000,-500.0,0.00014999,2]
[424443221,1780901438000,-500.0,0.00014999,2]
[424443222,1780901438000,-500.0,0.00014999,2]
[424443223,1780901438000,-556.2651521,0.00014999,2]
[424443219,1780901438000,-500.0,0.00014999,2]
[424443224,1780901438000,-587.18,0.00014999,2]
[424443225,1780901438000,-587.18,0.00014999,2]
[424443226,1780901438000,-587.18,0.00014999,2]
[424443227,1780901438000,-587.18,0.00014999,2]
[424443228,1780901438000,-587.18,0.00014999,2]
[424443230,1780901438000,-587.18,0.00014999,2]
[424443232,1780901438000,-587.18,0.00014999,2]
[424443231,1780901438000,-587.18,0.00014999,2]
[424443229,1780901438000,-587.18,0.00014999,2]
[424443208,1780901438000,-500.0,0.00014999,2]
[424443206,1780901438000,-500.0,0.00014999,2]
[424443218,1780901438000,-500.0,0.00014999,2]
[424443205,1780901438000,-1128.06432123,0.00014999,5]
[424443174,1780901438000,-2000.0,0.00014997,2]
[424443204,1780901438000,-221.05414791,0.00014998,2]
[424443172,1780901438000,-500.0,0.00014997,2]
[424443178,1780901438000,-45294.3647667,0.00014998,2]
[424443189,1780901438000,-422.34892283,0.00014998,2]
[424443179,1780901438000,-500.0,0.00014998,2]
[424443188,1780901438000,-558.28164668,0.00014998,2]
[424443185,1780901438000,-500.0,0.00014998,2]
[424443183,1780901438000,-500.0,0.00014998,2]
[424443187,1780901438000,-500.0,0.00014998,2]
[424443181,1780901438000,-500.0,0.00014998,2]
[424443190,1780901438000,-500.0,0.00014998,2]
[424443170,1780901438000,-500.0,0.00014997,2]
[424443192,1780901438000,-500.0,0.00014998,2]
[424443193,1780901438000,-587.18,0.00014998,2]
[424443201,1780901438000,-526.36523084,0.00014998,2]
[424443198,1780901438000,-500.0,0.00014998,2]
[424443202,1780901438000,-13080.5818155,0.00014998,2]
[424443197,1780901438000,-876688.7649252,0.00014998,2]
[424443203,1780901438000,-500.0,0.00014998,2]
[424443199,1780901438000,-523.25020934,0.00014998,2]
[424443195,1780901438000,-587.18,0.00014998,2]
[424443196,1780901438000,-918.184756,0.00014998,2]
[424443194,1780901438000,-587.18,0.00014998,2]
[424443191,1780901438000,-500.0,0.00014998,2]
[424443200,1780901438000,-500.0,0.00014998,2]
[424443247,1780901439000,-500.0,0.00014999,2]
[424443252,1780901439000,-500.0,0.00014999,2]
[424443251,1780901439000,-500.0,0.00014999,2]
[424443250,1780901439000,-500.0,0.00014999,2]
[424443249,1780901439000,-500.0,0.00014999,2]
[424443246,1780901439000,-500.0,0.00014999,2]
[424443245,1780901439000,-500.0,0.00014999,2]
[424443248,1780901439000,-500.0,0.00014999,2]
[424443240,1780901439000,-587.18,0.00014999,2]
[424443243,1780901439000,-500.0,0.00014999,2]
[424443238,1780901439000,-587.18,0.00014999,2]
[424443242,1780901439000,-1128.06432123,0.00014999,5]
[424443241,1780901439000,-587.21,0.00014999,2]
[424443239,1780901439000,-587.18,0.00014999,2]
[424443237,1780901439000,-587.18,0.00014999,2]
[424443236,1780901439000,-587.18,0.00014999,2]
[424443235,1780901439000,-587.18,0.00014999,2]
[424443233,1780901439000,-587.18,0.00014999,2]
[424443234,1780901439000,-587.18,0.00014999,2]
[424443254,1780901439000,-500.0,0.00014999,2]
[424443244,1780901439000,-500.0,0.00014999,2]
[424443255,1780901439000,-500.0,0.00014999,2]
[424443269,1780901439000,-500.0,0.00014999,2]
[424443258,1780901439000,-500.0,0.00014999,2]
[424443256,1780901439000,-500.0,0.00014999,2]
[424443274,1780901439000,-666.0,0.00014999,2]
[424443278,1780901439000,-5451341.74705204,0.00015,2]
[424443276,1780901439000,-2766.0,0.00015,5]
[424443272,1780901439000,-300.0,0.00014999,2]
[424443273,1780901439000,-300.0,0.00014999,2]
[424443271,1780901439000,-401.24,0.00014999,2]
[424443265,1780901439000,-500.0,0.00014999,2]
[424443277,1780901439000,-2000.0,0.00015,2]
[424443267,1780901439000,-500.0,0.00014999,2]
[424443275,1780901439000,-300.0,0.00014999,2]
[424443268,1780901439000,-500.0,0.00014999,2]
[424443266,1780901439000,-500.0,0.00014999,2]
[424443264,1780901439000,-500.0,0.00014999,2]
[424443262,1780901439000,-500.0,0.00014999,2]
[424443263,1780901439000,-500.0,0.00014999,2]
[424443261,1780901439000,-500.0,0.00014999,2]
[424443257,1780901439000,-500.0,0.00014999,2]
[424443253,1780901439000,-500.0,0.00014999,2]
[424443260,1780901439000,-500.0,0.00014999,2]
[424443259,1780901439000,-551.97576766,0.00014999,2]
[424443270,1780901439000,-500.0,0.00014999,2]
[424443279,1780901440000,-58.88313958,0.00015,2]
[424443283,1780901443000,-69.64719672,0.00011753,2]
[424443284,1780901443000,-146.2170803,0.00011753,2]
[424443285,1780901443000,-6148.8103508,0.00015,2]
[424443287,1780901443000,-636.45251588,0.00015,2]
[424443286,1780901443000,-893.70352328,0.00015,2]
[424443293,1780901446000,-255.74120899,0.00015,2]
[424443292,1780901446000,-6121.61832201,0.00015,2]
[424443312,1780901675000,331.37,0.0003013,120]
[424443335,1780902072000,93184.86810622,0.0003,120]
[424443352,1780902413000,254.32473428,0.00030137,120]
[424443364,1780902523000,-150.53336307,0.00013488,2]
[424443360,1780902523000,-238.47314681,0.00013488,2]
[424443361,1780902523000,-224.57091147,0.00013488,2]
[424443362,1780902523000,-153.84603978,0.00013488,2]
[424443363,1780902523000,-150.0,0.00013488,2]
[424443365,1780902523000,-150.0,0.00013488,2]
[424443366,1780902523000,-150.0,0.00013488,2]
[424443359,1780902523000,-150.0,0.00013353,2]
[424443369,1780902523000,-150.0,0.00013697,2]
[424443375,1780902523000,-417.45761275,0.00013698,2]
[424443374,1780902523000,-500.0,0.00013698,2]
[424443373,1780902523000,-189.8706912,0.00013698,2]
[424443367,1780902523000,-154.58509942,0.00013488,2]
[424443371,1780902523000,-500.0,0.00013698,2]
[424443370,1780902523000,-500.0,0.00013698,2]
[424443368,1780902523000,-168.27,0.00013647,2]
[424443372,1780902523000,-310.1293088,0.00013698,2]
[424443420,1780902638000,-166.66,0.00014291,2]
[424443428,1780902638000,-300.0,0.00014539,2]
[424443423,1780902638000,-350.0,0.00014451,2]
[424443425,1780902638000,-205.1344528,0.00014493,2]
[424443424,1780902638000,-166.66,0.00014489,2]
[424443427,1780902638000,-300.0,0.00014539,2]
[424443426,1780902638000,-600.0,0.000145,5]
[424443429,1780902638000,-300.0,0.00014539,2]
[424443431,1780902638000,-342.4450687,0.00014539,2]
[424443434,1780902638000,-502.0,0.0001463,2]
[424443436,1780902638000,-166.66,0.00014686,2]
[424443430,1780902638000,-300.0,0.00014539,2]
[424443433,1780902638000,-350.0,0.00014623,2]
[424443421,1780902638000,-200.0,0.000143,5]
[424443435,1780902638000,-169.38,0.00014632,2]
[424443438,1780902638000,-600.0,0.00014688,2]
[424443437,1780902638000,-150.0,0.00014687,2]
[424443448,1780902638000,-200.0,0.00014688,2]
[424443444,1780902638000,-2500.0,0.00014688,2]
[424443441,1780902638000,-600.0,0.00014688,2]
[424443442,1780902638000,-600.0,0.00014688,2]
[424443432,1780902638000,-800.0,0.000146,5]
[424443422,1780902638000,-400.0,0.000144,5]
[424443406,1780902638000,-215.86427702,0.00013757,2]
[424443411,1780902638000,-166.66,0.00013896,2]
[424443445,1780902638000,-2500.0,0.00014688,2]
[424443391,1780902638000,-223.01162119,0.00013698,2]
[424443390,1780902638000,-82.54238725,0.00013698,2]
[424443393,1780902638000,-500.0,0.00013698,2]
[424443392,1780902638000,-276.98837881,0.00013698,2]
[424443395,1780902638000,-500.0,0.00013698,2]
[424443398,1780902638000,-166.66,0.00013699,2]
[424443394,1780902638000,-500.0,0.00013698,2]
[424443396,1780902638000,-639.59,0.00013698,2]
[424443397,1780902638000,-500.0,0.00013698,2]
[424443408,1780902638000,-318.12,0.00013761,2]
[424443399,1780902638000,-200.0,0.00013699,2]
[424443400,1780902638000,-169.38,0.00013718,2]
[424443402,1780902638000,-300.0,0.00013726,2]
[424443404,1780902638000,-297.58747514,0.00013726,2]
[424443417,1780902638000,-2329.0,0.00014,2]
[424443415,1780902638000,-160.60840006,0.00014,2]
[424443418,1780902638000,-166.66,0.00014094,2]
[424443403,1780902638000,-300.0,0.00013726,2]
[424443419,1780902638000,-169.38,0.00014175,2]
[424443413,1780902638000,-250.0,0.00014,2]
[424443409,1780902638000,-841.58,0.00013809,2]
[424443401,1780902638000,-206.77522231,0.00013726,2]
[424443439,1780902638000,-600.0,0.00014688,2]
[424443446,1780902638000,-2500.0,0.00014688,2]
[424443443,1780902638000,-2500.0,0.00014688,2]
[424443474,1780902638000,-136950.2119882,0.00014981,2]
[424443470,1780902638000,-500.0,0.00014899,2]
[424443476,1780902638000,-10276.0662851,0.00014981,2]
[424443477,1780902638000,-9711.2461224,0.00014981,2]
[424443479,1780902638000,-240.86,0.00014986,2]
[424443478,1780902638000,-157.2796736,0.00014981,2]
[424443480,1780902638000,-639.59,0.00014995,2]
[424443482,1780902638000,-639.59,0.00014997,2]
[424443485,1780902638000,-500.0,0.00014997,2]
[424443486,1780902638000,-500.0,0.00014997,2]
[424443475,1780902638000,-53706.7696996,0.00014981,2]
[424443488,1780902638000,-500.0,0.00014997,2]
[424443489,1780902638000,-639.59,0.00014998,2]
[424443491,1780902638000,-500.0,0.00014998,2]
[424443487,1780902638000,-500.0,0.00014997,2]
[424443484,1780902638000,-639.59,0.00014997,2]
[424443483,1780902638000,-639.59,0.00014997,2]
[424443481,1780902638000,-151.0,0.00014997,2]
[424443493,1780902638000,-500.0,0.00014998,2]
[424443492,1780902638000,-500.0,0.00014998,2]
[424443440,1780902638000,-600.0,0.00014688,2]
[424443495,1780902638000,-500.0,0.00014998,2]
[424443490,1780902638000,-500.0,0.00014998,2]
[424443471,1780902638000,-200.0,0.000149,5]
[424443494,1780902638000,-502.49134264,0.00014998,2]
[424443473,1780902638000,-500.0,0.0001498,2]
[424443472,1780902638000,-350.0,0.00014928,2]
[424443449,1780902638000,-200.0,0.00014688,2]
[424443451,1780902638000,-200.0,0.00014688,2]
[424443450,1780902638000,-200.0,0.00014688,2]
[424443461,1780902638000,-200.0,0.0001488,2]
[424443452,1780902638000,-262.949195,0.00014688,2]
[424443457,1780902638000,-552.991,0.00014726,2]
[424443453,1780902638000,-1000.0,0.000147,5]
[424443458,1780902638000,-187964.6709421,0.00014797,2]
[424443462,1780902638000,-165.52874015,0.00014881,2]
[424443455,1780902638000,-500.0,0.00014726,2]
[424443447,1780902638000,-2500.0,0.00014688,2]
[424443463,1780902638000,-165.52874008,0.00014883,2]
[424443456,1780902638000,-500.0,0.00014726,2]
[424443460,1780902638000,-350.0,0.00014842,2]
[424443459,1780902638000,-200.0,0.000148,5]
[424443465,1780902638000,-184.636,0.00014891,2]
[424443466,1780902638000,-512.59450446,0.00014899,2]
[424443464,1780902638000,-1144.061,0.00014891,2]
[424443468,1780902638000,-526.36523084,0.00014899,2]
[424443467,1780902638000,-523.25020934,0.00014899,2]
[424443469,1780902638000,-639.59,0.00014899,2]
[424443454,1780902638000,-500.0,0.00014726,2]
[424443525,1780902639000,-639.59,0.00014999,2]
[424443527,1780902639000,-639.59,0.00014999,2]
[424443534,1780902639000,-639.59,0.00014999,2]
[424443517,1780902639000,-578.33888544,0.00014999,2]
[424443524,1780902639000,-639.59,0.00014999,2]
[424443522,1780902639000,-639.59,0.00014999,2]
[424443523,1780902639000,-639.59,0.00014999,2]
[424443529,1780902639000,-639.59,0.00014999,2]
[424443526,1780902639000,-639.59,0.00014999,2]
[424443530,1780902639000,-639.59,0.00014999,2]
[424443528,1780902639000,-639.59,0.00014999,2]
[424443532,1780902639000,-639.59,0.00014999,2]
[424443531,1780902639000,-639.59,0.00014999,2]
[424443535,1780902639000,-639.82,0.00014999,2]
[424443536,1780902639000,-500.0,0.00014999,2]
[424443537,1780902639000,-531.94649365,0.00014999,2]
[424443539,1780902639000,-500.0,0.00014999,2]
[424443538,1780902639000,-500.0,0.00014999,2]
[424443543,1780902639000,-500.0,0.00014999,2]
[424443516,1780902639000,-500.0,0.00014999,2]
[424443533,1780902639000,-639.59,0.00014999,2]
[424443521,1780902639000,-639.59,0.00014999,2]
[424443497,1780902639000,-500.0,0.00014998,2]
[424443518,1780902639000,-240.98630425,0.00014999,2]
[424443509,1780902639000,-500.0,0.00014999,2]
[424443505,1780902639000,-500.0,0.00014999,2]
[424443506,1780902639000,-500.0,0.00014999,2]
[424443496,1780902639000,-500.0,0.00014998,2]
[424443500,1780902639000,-500.0,0.00014998,2]
[424443498,1780902639000,-500.0,0.00014998,2]
[424443499,1780902639000,-500.0,0.00014998,2]
[424443502,1780902639000,-507.15165324,0.00014999,2]
[424443508,1780902639000,-500.0,0.00014999,2]
[424443507,1780902639000,-500.0,0.00014999,2]
[424443503,1780902639000,-1128.06432123,0.00014999,5]
[424443540,1780902639000,-500.0,0.00014999,2]
[424443504,1780902639000,-500.0,0.00014999,2]
[424443501,1780902639000,-1128.06432123,0.00014999,5]
[424443510,1780902639000,-500.0,0.00014999,2]
[424443514,1780902639000,-500.0,0.00014999,2]
[424443512,1780902639000,-500.0,0.00014999,2]
[424443513,1780902639000,-500.0,0.00014999,2]
[424443515,1780902639000,-500.0,0.00014999,2]
[424443511,1780902639000,-500.0,0.00014999,2]
[424443520,1780902639000,-639.59,0.00014999,2]
[424443519,1780902639000,-639.59,0.00014999,2]
[424443548,1780902639000,-500.0,0.00014999,2]
[424443587,1780902639000,-500.0,0.00014999,2]
[424443547,1780902639000,-500.0,0.00014999,2]
[424443577,1780902639000,-500.0,0.00014999,2]
[424443575,1780902639000,-500.0,0.00014999,2]
[424443569,1780902639000,-500.0,0.00014999,2]
[424443542,1780902639000,-150.0,0.00014999,2]
[424443570,1780902639000,-500.0,0.00014999,2]
[424443565,1780902639000,-500.0,0.00014999,2]
[424443564,1780902639000,-500.0,0.00014999,2]
[424443581,1780902639000,-500.0,0.00014999,2]
[424443583,1780902639000,-500.0,0.00014999,2]
[424443585,1780902639000,-500.0,0.00014999,2]
[424443589,1780902639000,-500.0,0.00014999,2]
[424443591,1780902639000,-556.2651521,0.00014999,2]
[424443600,1780902639000,-666.0,0.00014999,2]
[424443598,1780902639000,-300.0,0.00014999,2]
[424443594,1780902639000,-671.29049354,0.00014999,2]
[424443592,1780902639000,-300.0,0.00014999,2]
[424443595,1780902639000,-300.0,0.00014999,2]
[424443602,1780902639000,-2676.0,0.00015,5]
[424443604,1780902639000,-3979.0,0.00015,5]
[424443605,1780902639000,-2000.0,0.00015,2]
[424443606,1780902639000,-5004597.74541469,0.00015,2]
[424443572,1780902639000,-401.24,0.00014999,2]
[424443568,1780902639000,-500.0,0.00014999,2]
[424443573,1780902639000,-500.0,0.00014999,2]
[424443571,1780902639000,-500.0,0.00014999,2]
[424443541,1780902639000,-221.05414791,0.00014999,2]
[424443544,1780902639000,-500.0,0.00014999,2]
[424443545,1780902639000,-500.0,0.00014999,2]
[424443546,1780902639000,-500.0,0.00014999,2]
[424443567,1780902639000,-500.0,0.00014999,2]
[424443550,1780902639000,-500.0,0.00014999,2]
[424443551,1780902639000,-500.0,0.00014999,2]
[424443552,1780902639000,-500.0,0.00014999,2]
[424443553,1780902639000,-500.0,0.00014999,2]
[424443558,1780902639000,-500.0,0.00014999,2]
[424443549,1780902639000,-500.0,0.00014999,2]
[424443556,1780902639000,-500.0,0.00014999,2]
[424443554,1780902639000,-500.0,0.00014999,2]
[424443557,1780902639000,-500.0,0.00014999,2]
[424443561,1780902639000,-500.0,0.00014999,2]
[424443562,1780902639000,-500.0,0.00014999,2]
[424443560,1780902639000,-551.97576766,0.00014999,2]
[424443559,1780902639000,-500.0,0.00014999,2]
[424443563,1780902639000,-500.0,0.00014999,2]
[424443566,1780902639000,-500.0,0.00014999,2]
[424443579,1780902639000,-500.0,0.00014999,2]
[424443555,1780902639000,-500.0,0.00014999,2]
[424443608,1780902640000,-1664.49726189,0.00015,2]
[424443607,1780902640000,-165.52874008,0.00014886,2]
[424443609,1780902640000,-100300.46967395,0.00015,2]
[424443613,1780902643000,-165.52874008,0.00014888,2]
[424443614,1780902643000,-2816.92709001,0.00015,2]
[424443612,1780902643000,-693.99950253,0.00015,2]
[424443617,1780902646000,-1997.70938325,0.00015,2]
[424443639,1780903371000,167.55030527,0.00030136,120]
[424443668,1780903833000,-514.46740334,0.00013,5]
[424443669,1780903833000,-438.72994607,0.00013,5]
[424443672,1780903833000,-445.31294287,0.00013542,2]
[424443673,1780903833000,-366.05705713,0.00013542,2]
[424443671,1780903833000,-159.06,0.00013529,2]
[424443670,1780903833000,-150.0,0.00013129,2]
[424443677,1780903833000,-706.95471448,0.00013608,2]
[424443674,1780903833000,-479.37,0.00013553,2]
[424443676,1780903833000,-141.06739859,0.00013608,2]
[424443678,1780903833000,-378.12266944,0.00013608,2]
[424443675,1780903833000,-628.29,0.00013608,2]
[424443691,1780903838000,-109.0957646,0.00013699,2]
[424443690,1780903838000,-166.66,0.00013699,2]